bitfinex/quotes_SOLUSD_20250307
["timestamp","ask_amount","ask_price","bid_price","bid_amount"]
[1741360448098,18.64964886,147.22,147.18,33.9299281]
[1741360448312,18.64964886,147.22,147.18,0.14216157]
[1741360448522,18.64964886,147.21,147.18,0.14216157]
[1741360448686,52.43741539,147.21,147.18,0.14216157]
[1741360448886,53.81776653,147.19,147.13,33.78776653]
[1741360449085,18.64964886,147.18,147.15,33.78776653]
[1741360449520,18.64964886,147.18,147.13,33.78776653]
[1741360449819,18.64964886,147.16,147.11,33.78776653]
[1741360450023,18.64964886,147.16,147.12,33.9299281]
[1741360450202,18.64964886,147.16,147.12,33.78776653]
[1741360450523,33.78776653,147.17,147.05,9.36]
[1741360450524,18.64964886,147.18,147.14,0.14216157]
[1741360450720,18.64964886,147.17,147.14,0.14216157]
[1741360451193,0.03,147.19,147.15,33.9299281]
[1741360451390,0.03,147.19,147.17,33.9299281]
[1741360451894,0.03,147.19,147.18,33.9299281]
[1741360452420,0.03,147.19,147.18,48.01831535]
[1741360452593,0.03,147.19,147.18,34.21425124]
[1741360453696,0.03,147.19,147.18,68.00201777]
[1741360454093,0.03,147.27,147.22,0.28432314]
[1741360454303,0.03,147.27,147.26,0.14216157]
[1741360456699,0.03,147.27,147.26,33.9299281]
[1741360458132,0.03,147.27,147.26,0.14216157]
[1741360458310,18.67964886,147.27,147.23,33.78776653]
[1741360458510,0.03,147.27,147.24,0.14216157]
[1741360459336,18.64964886,147.25,147.15,7.00864235]
[1741360459634,18.64964886,147.25,147.21,33.9299281]
[1741360460432,18.64964886,147.23,147.19,33.78776653]
[1741360460630,18.64964886,147.23,147.2,0.14216157]
[1741360460837,18.64964886,147.26,147.22,0.14216157]
[1741360461215,18.64964886,147.26,147.22,33.9299281]
[1741360461418,147.11,147.27,147.26,0.14216157]
[1741360461824,147.11,147.27,147.26,33.9299281]
[1741360462024,147.11,147.27,147.25,0.14216157]
[1741360462632,18.64964886,147.26,147.18,0.14216157]
[1741360462906,18.64964886,147.26,147.23,0.14216157]
[1741360464029,0.03,147.27,147.26,0.14216157]
[1741360464536,18.67964886,147.27,147.22,0.14216157]
[1741360464833,18.67964886,147.27,147.25,33.9299281]
[1741360464834,0.03,147.27,147.25,33.9299281]
[1741360465224,0.03,147.27,147.25,0.14216157]
[1741360465527,0.03,147.27,147.24,33.78776653]
[1741360465528,18.67964886,147.27,147.24,0.14216157]
[1741360465938,52.46741539,147.27,147.24,0.14216157]
[1741360466240,18.67964886,147.27,147.23,33.9299281]
[1741360466415,0.03,147.27,147.25,0.14216157]
[1741360467015,0.03,147.27,147.24,33.9299281]
[1741360467426,0.03,147.27,147.26,0.14216157]
[1741360467933,0.03,147.27,147.24,0.14216157]
[1741360467934,18.67964886,147.27,147.24,0.14216157]
[1741360468515,18.67964886,147.27,147.23,0.14216157]
[1741360469647,18.67964886,147.27,147.24,0.14216157]
[1741360469942,18.64964886,147.24,147.19,0.033]
[1741360470143,18.64964886,147.21,147.19,0.033]
[1741360470716,18.64964886,147.22,147.19,0.17516157]
[1741360470939,18.64964886,147.22,147.19,0.033]
[1741360471246,18.64964886,147.23,147.19,0.17516157]
[1741360471420,18.64964886,147.24,147.19,33.9629281]
[1741360471842,18.64964886,147.24,147.21,33.9299281]
[1741360472434,18.64964886,147.24,147.2,0.14216157]
[1741360472636,52.43741539,147.24,147.2,0.14216157]
[1741360472831,18.64964886,147.24,147.2,0.14216157]
[1741360473034,52.43741539,147.24,147.2,0.14216157]
[1741360473431,52.43741539,147.24,147.19,0.033]
[1741360473647,52.72173853,147.22,147.19,0.033]
[1741360474545,18.64964886,147.2,147.19,0.033]
[1741360475116,38.64964886,147.2,147.19,0.033]
[1741360475924,72.43741539,147.2,147.16,0.14216157]
[1741360476847,38.64964886,147.2,147.16,0.14216157]
[1741360477241,18.64964886,147.19,147.16,33.9299281]
[1741360477434,20.0,147.2,147.16,33.9299281]
[1741360478217,18.64964886,147.19,147.16,33.9299281]
[1741360478454,18.64964886,147.19,147.15,0.14216157]
[1741360479120,52.43741539,147.19,147.15,0.14216157]
[1741360479324,18.64964886,147.18,147.14,33.9299281]
[1741360479529,18.64964886,147.17,147.1,312.0]
[1741360479736,33.78776653,147.19,147.14,0.14216157]
[1741360480058,33.78776653,147.18,147.14,0.14216157]
[1741360480351,33.78776653,147.18,147.13,33.9299281]
[1741360480729,18.64964886,147.16,147.12,33.78776653]
[1741360481053,52.43741539,147.16,147.11,0.14216157]
[1741360481259,52.43741539,147.16,147.11,33.9299281]
[1741360481453,52.43741539,147.16,147.11,33.78776653]
[1741360481635,33.78776653,147.15,147.1,33.78776653]
[1741360481830,18.64964886,147.16,147.11,0.14216157]
[1741360481831,52.43741539,147.16,147.11,0.14216157]
[1741360482032,18.64964886,147.14,147.11,0.14216157]
[1741360482355,52.43741539,147.14,147.09,33.78776653]
[1741360482534,18.64964886,147.16,147.1,33.78776653]
[1741360482738,18.64964886,147.14,147.11,0.14216157]
[1741360483130,18.64964886,147.14,147.1,0.14216157]
[1741360483332,1.27439968,147.18,147.1,33.9299281]
[1741360483333,33.78776653,147.16,147.1,33.9299281]
[1741360483532,18.64964886,147.15,147.12,0.14216157]
[1741360484135,18.64964886,147.18,147.15,0.14216157]
[1741360484550,18.64964886,147.18,147.15,33.9299281]
[1741360484728,33.78776653,147.17,147.1,0.14216157]
[1741360484923,52.43741539,147.19,147.13,33.78776653]
[1741360485134,9.32,147.2,147.16,33.78776653]
[1741360485353,9.32,147.2,147.18,0.14216157]
[1741360485855,156.38,147.24,147.19,0.14216157]
[1741360486032,18.64964886,147.21,147.19,0.14216157]
[1741360486234,18.933972,147.23,147.19,0.14216157]
[1741360486435,33.78776653,147.22,147.17,0.14216157]
[1741360486843,52.43741539,147.2,147.16,0.14216157]
[1741360487247,18.64964886,147.2,147.16,33.9299281]
[1741360487448,20.0,147.2,147.16,0.14216157]
[1741360487644,33.78776653,147.23,147.17,33.9299281]
[1741360487852,147.06,147.24,147.19,0.14216157]
[1741360488162,18.64964886,147.23,147.2,0.14216157]
[1741360488655,18.64964886,147.2,147.17,0.14216157]
[1741360489045,18.64964886,147.21,147.17,33.9299281]
[1741360489233,18.64964886,147.22,147.17,33.9299281]
[1741360489831,52.43741539,147.22,147.17,33.9299281]
[1741360490057,18.64964886,147.22,147.17,33.9299281]
[1741360490262,180.84776653,147.24,147.19,0.14216157]
[1741360490466,147.06,147.24,147.22,0.14216157]
[1741360491771,147.06,147.24,147.23,33.9299281]
[1741360492963,147.06,147.24,147.23,0.14216157]
[1741360493182,147.06,147.24,147.22,0.14216157]
[1741360493975,147.06,147.24,147.21,0.14216157]
[1741360494186,0.03,147.22,147.21,33.9299281]
[1741360494372,0.03,147.22,147.21,0.14216157]
[1741360494756,18.64964886,147.23,147.22,0.14216157]
[1741360495053,52.43741539,147.23,147.16,33.82076653]
[1741360495251,33.78776653,147.21,147.16,33.82076653]
[1741360495470,18.64964886,147.21,147.18,0.14216157]
[1741360495878,18.64964886,147.19,147.16,0.033]
[1741360496184,18.64964886,147.18,147.16,0.033]
[1741360496811,52.43741539,147.17,147.16,0.033]
[1741360497155,18.64964886,147.17,147.16,0.033]
[1741360497351,33.78776653,147.2,147.16,0.17516157]
[1741360497595,18.64964886,147.19,147.16,0.17516157]
[1741360498378,52.43741539,147.21,147.16,0.17516157]
[1741360498882,18.64964886,147.21,147.17,0.14216157]
[1741360499085,18.64964886,147.21,147.17,33.9299281]
[1741360499254,9.32,147.22,147.2,0.14216157]
[1741360500160,18.64964886,147.21,147.19,0.14216157]
[1741360500357,43.10776653,147.22,147.19,0.14216157]
[1741360500581,9.32,147.22,147.19,0.14216157]
[1741360501692,136.95191641,147.24,147.22,0.14216157]
[1741360501888,0.03,147.27,147.24,0.14216157]
[1741360502101,0.03,147.27,147.26,33.9299281]
[1741360502592,0.03,147.27,147.26,0.14216157]
[1741360503002,0.03,147.27,147.26,33.9299281]
[1741360503508,156.38,147.33,147.26,33.9299281]
[1741360503509,147.08,147.33,147.27,0.14216157]
[1741360503711,0.03,147.34,147.3,0.14216157]
[1741360503913,52.43741539,147.33,147.3,0.14216157]
[1741360504116,18.64964886,147.3,147.23,0.14216157]
[1741360504281,52.43741539,147.3,147.26,0.14216157]
[1741360505098,18.64964886,147.3,147.26,0.14216157]
[1741360505296,18.64964886,147.3,147.22,312.0]
[1741360505297,20.0,147.28,147.22,312.0]
[1741360505487,33.78776653,147.27,147.22,33.78776653]
[1741360505683,33.78776653,147.27,147.18,0.21324235]
[1741360505684,33.78776653,147.25,147.18,0.21324235]
[1741360505885,33.78776653,147.23,147.18,0.21324235]
[1741360506287,33.78776653,147.21,147.16,33.82076653]
[1741360506502,33.78776653,147.18,147.16,0.033]
[1741360506678,33.78776653,147.17,147.16,0.033]
[1741360507011,52.72173853,147.17,147.16,0.0001]
[1741360507390,20.0,147.13,147.05,4.6596]
[1741360507586,18.64964886,147.12,147.05,4.6596]
[1741360507897,53.78776653,147.13,147.08,33.78776653]
[1741360508215,33.78776653,147.12,147.05,4.6596]
[1741360508419,33.78776653,147.11,147.06,33.78776653]
[1741360508722,33.78776653,147.07,147.04,0.033]
[1741360508881,20.0,147.05,147.04,0.033]
[1741360509079,38.933972,147.05,147.04,0.033]
[1741360509291,20.0,147.05,147.04,0.033]
[1741360509813,72.43741539,147.05,147.04,0.033]
[1741360510108,147.06,147.15,147.04,43.7436281]
[1741360510285,147.06,147.15,147.13,0.14216157]
[1741360510789,180.84776653,147.15,147.13,0.14216157]
[1741360510994,147.06,147.15,147.12,0.14216157]
[1741360511199,147.06,147.15,147.14,33.9299281]
[1741360511380,147.06,147.15,147.14,0.14216157]
[1741360511583,165.70964886,147.15,147.1,0.14216157]
[1741360511783,147.06,147.15,147.1,0.14216157]
[1741360512204,147.06,147.15,147.08,0.14216157]
[1741360512386,147.06,147.15,147.11,33.78776653]
[1741360512596,147.06,147.15,147.12,0.14216157]
[1741360512998,147.06,147.15,147.07,33.78776653]
[1741360512999,147.06,147.15,147.14,0.14216157]
[1741360513193,147.06,147.15,147.14,33.9299281]
[1741360513397,9.3,147.19,147.14,33.9299281]
[1741360513594,156.4816,147.24,147.18,0.14216157]
[1741360513799,147.12,147.24,147.21,0.14216157]
[1741360513997,147.12,147.24,147.23,0.14216157]
[1741360514212,147.12,147.24,147.23,33.9299281]
[1741360514513,147.12,147.24,147.23,0.14216157]
[1741360514908,0.03,147.3,147.24,0.14216157]
[1741360515088,0.03,147.3,147.29,33.9299281]
[1741360515713,0.03,147.3,147.29,0.14216157]
[1741360517801,0.03,147.3,147.29,33.9299281]
[1741360518605,0.03,147.3,147.29,345.9299281]
[1741360519013,0.03,147.3,147.29,0.14216157]
[1741360519217,0.03,147.3,147.27,33.78776653]
[1741360519429,0.03,147.3,147.28,0.14216157]
[1741360520109,0.03,147.3,147.27,0.14216157]
[1741360520521,0.03,147.3,147.27,33.9299281]
[1741360520702,0.03,147.3,147.26,33.78776653]
[1741360520903,0.03,147.3,147.27,0.14216157]
[1741360521525,0.03,147.3,147.25,0.14216157]
[1741360521846,0.03,147.3,147.29,33.9299281]
[1741360522001,0.03,147.3,147.29,0.14216157]
[1741360522423,33.81776653,147.3,147.29,0.14216157]
[1741360522608,50.48793617,147.3,147.29,0.14216157]
[1741360523005,0.03,147.3,147.29,0.14216157]
[1741360525327,50.48793617,147.3,147.25,50.45793617]
[1741360525511,50.48793617,147.3,147.26,0.14216157]
[1741360525706,0.03,147.3,147.26,0.14216157]
[1741360525938,0.03,147.3,147.26,50.60009774]
[1741360526110,0.03,147.3,147.28,50.60009774]
[1741360526534,0.03,147.3,147.28,0.14216157]
[1741360527131,0.03,147.3,147.29,50.60009774]
[1741360528040,0.03,147.3,147.28,0.14216157]
[1741360528411,0.03,147.3,147.21,9.132]
[1741360528719,0.03,147.3,147.17,0.21324235]
[1741360528720,50.45793617,147.25,147.19,4.6182]
[1741360528920,50.45793617,147.24,147.18,50.45793617]
[1741360529113,50.45793617,147.23,147.18,50.45793617]
[1741360529315,50.45793617,147.21,147.17,0.21324235]
[1741360529503,18.64964886,147.25,147.18,0.14216157]
[1741360529504,9.28,147.24,147.18,0.14216157]
[1741360529705,59.73793617,147.24,147.18,50.45793617]
[1741360529909,59.73793617,147.24,147.19,50.45793617]
[1741360530412,9.28,147.24,147.2,50.45793617]
[1741360530623,9.28,147.24,147.21,0.14216157]
[1741360531722,20.0,147.28,147.24,0.14216157]
[1741360531925,156.28,147.29,147.24,0.14216157]
[1741360532142,50.45793617,147.28,147.22,50.45793617]
[1741360532323,50.45793617,147.28,147.23,50.60009774]
[1741360532645,156.28,147.29,147.26,0.14216157]
[1741360533841,156.28,147.29,147.22,7.21878471]
[1741360533842,156.28,147.29,147.27,50.60009774]
[1741360534142,147.0,147.29,147.27,0.14216157]
[1741360534444,147.0,147.29,147.25,0.14216157]
[1741360534630,50.45793617,147.27,147.25,0.14216157]
[1741360534822,50.45793617,147.26,147.2,50.45793617]
[1741360535027,50.45793617,147.26,147.22,0.14216157]
[1741360535235,50.45793617,147.26,147.21,50.45793617]
[1741360535432,50.45793617,147.26,147.2,50.45793617]
[1741360535630,50.45793617,147.26,147.21,0.14216157]
[1741360536442,59.73793617,147.27,147.22,0.14216157]
[1741360536650,9.28,147.27,147.22,50.60009774]
[1741360537042,50.45793617,147.26,147.18,20.14216157]
[1741360537247,50.45793617,147.26,147.22,0.14216157]
[1741360538427,20.0,147.23,147.18,312.0]
[1741360538648,50.45793617,147.21,147.17,0.21324235]
[1741360538835,21.27392916,147.23,147.17,0.21324235]
[1741360539149,50.45793617,147.21,147.17,0.21324235]
[1741360539324,50.45793617,147.21,147.16,0.033]
[1741360539325,50.45793617,147.18,147.16,0.033]
[1741360539736,69.10758503,147.17,147.16,0.033]
[1741360539944,18.64964886,147.16,147.08,4.6902]
[1741360540138,50.45793617,147.14,147.04,16.50874235]
[1741360540349,50.45793617,147.13,147.04,9.70824235]
[1741360540549,59.73793617,147.13,147.07,50.45793617]
[1741360540948,59.73793617,147.13,147.08,50.45793617]
[1741360541131,78.38758503,147.13,147.08,50.45793617]
[1741360541334,50.45793617,147.12,147.07,50.45793617]
[1741360541534,50.45793617,147.11,147.04,312.24624235]
[1741360541755,69.10758503,147.12,147.06,50.45793617]
[1741360541930,50.45793617,147.11,147.04,312.24624235]
[1741360542134,50.45793617,147.1,147.05,50.45793617]
[1741360542342,18.64964886,147.11,147.04,312.24624235]
[1741360542554,33.74520073,147.07,147.04,0.033]
[1741360542731,18.64964886,147.09,147.04,0.033]
[1741360543059,52.39484959,147.09,147.04,0.17516157]
[1741360543259,33.74520073,147.08,147.04,0.17516157]
[1741360543567,1.27506918,147.1,147.04,0.17516157]
[1741360543568,1.27506918,147.1,147.04,0.033]
[1741360543854,20.17596315,147.13,147.05,0.14216157]
[1741360544045,20.0,147.1,147.04,0.033]
[1741360544240,20.0,147.1,147.07,0.14216157]
[1741360544835,33.74520073,147.12,147.07,33.74520073]
[1741360545055,9.28,147.13,147.08,33.8873623]
[1741360545258,33.74520073,147.12,147.08,0.14216157]
[1741360545447,33.74520073,147.12,147.07,0.14216157]
[1741360545834,33.74520073,147.11,147.07,0.14216157]
[1741360546358,53.74520073,147.1,147.06,0.14216157]
[1741360546660,20.0,147.1,147.06,0.14216157]
[1741360547157,20.0,147.1,147.07,0.14216157]
[1741360547861,1.27483163,147.16,147.09,33.8873623]
[1741360548072,9.28,147.16,147.12,0.14216157]
[1741360548256,9.28,147.16,147.12,33.8873623]
[1741360548459,43.02520073,147.16,147.12,0.14216157]
[1741360548644,33.74520073,147.15,147.1,0.14216157]
[1741360548962,33.74520073,147.12,147.1,0.14216157]
[1741360549140,1.27446519,147.14,147.06,0.14216157]
[1741360549141,33.74520073,147.11,147.06,0.14216157]
[1741360549336,33.74520073,147.11,147.05,345.74520073]
[1741360549639,33.74520073,147.09,147.04,0.033]
[1741360549960,33.74520073,147.08,147.04,0.033]
[1741360550153,33.74520073,147.09,147.04,33.77820073]
[1741360550355,43.02520073,147.09,147.04,33.77820073]
[1741360550850,9.28,147.09,147.04,33.77820073]
[1741360551062,9.28,147.09,147.06,0.14216157]
[1741360551360,43.02520073,147.09,147.06,0.14216157]
[1741360551560,43.02520073,147.09,147.04,0.033]
[1741360551937,33.74520073,147.08,147.04,0.033]
[1741360552141,33.74520073,147.05,147.04,0.033]
[1741360553272,52.39484959,147.05,147.04,0.033]
[1741360553559,20.0,147.01,146.93,0.98064235]
[1741360553762,33.74520073,146.97,146.93,0.98064235]
[1741360553954,33.74520073,146.94,146.93,0.7674]
[1741360554347,18.64964886,146.94,146.93,0.7674]
[1741360554548,10.55655821,146.95,146.94,0.14216157]
[1741360554762,43.02520073,146.95,146.94,0.14216157]
[1741360554961,43.02520073,146.95,146.93,0.7674]
[1741360555170,9.28,146.95,146.93,0.7674]
[1741360555872,29.20580449,146.95,146.93,0.7674]
[1741360556079,33.74520073,146.94,146.93,0.7674]
[1741360556241,33.74520073,146.94,146.93,0.90956157]
[1741360556448,33.74520073,146.94,146.93,0.7674]
[1741360556644,50.72597128,146.94,146.93,0.7674]
[1741360556867,19.07613357,146.94,146.93,0.7674]
[1741360557070,69.80210485,146.94,146.93,0.7674]
[1741360557245,137.52374367,147.0,146.94,0.14216157]
[1741360557246,20.0,146.97,146.94,0.14216157]
[1741360557448,1.27652334,146.99,146.94,0.14216157]
[1741360557449,20.0,146.96,146.94,0.14216157]
[1741360557670,50.72597128,146.97,146.94,0.14216157]
[1741360557977,9.28,146.99,146.94,0.14216157]
[1741360557978,20.0,146.96,146.94,0.14216157]
[1741360558354,70.72597128,146.96,146.94,0.14216157]
[1741360558677,90.65188429,146.95,146.94,0.14216157]
[1741360558859,90.65188429,146.95,146.93,0.7674]
[1741360558860,19.07613357,146.94,146.93,0.59180763]
[1741360559058,120.52807613,146.94,146.93,0.59180763]
[1741360559261,69.80210485,146.94,146.93,0.59180763]
[1741360559446,69.37562014,146.94,146.93,0.59180763]
[1741360559774,121.80450604,146.94,146.93,0.7339692]
[1741360560079,71.07853476,146.94,146.93,0.59180763]
[1741360560374,130.75520604,146.94,146.93,0.59180763]
[1741360560867,0.42648471,146.93,146.92,1.6384]
[1741360561052,0.14216157,146.89,146.78,0.24624235]
[1741360561247,50.72597128,146.82,146.78,0.24624235]
[1741360561777,50.72597128,146.81,146.78,0.033]
[1741360562068,69.51778171,146.81,146.78,0.033]
[1741360562248,71.07983903,146.81,146.78,0.033]
[1741360562665,121.80581031,146.81,146.78,0.033]
[1741360562873,71.07983903,146.81,146.78,0.033]
[1741360563165,207.38527544,146.81,146.78,0.033]
[1741360563359,0.14216157,146.79,146.78,0.033]
[1741360563559,121.80631772,146.79,146.78,0.033]
[1741360563951,20.14216157,146.75,146.72,0.033]
[1741360564174,69.80210485,146.73,146.72,0.033]
[1741360564387,70.79620651,146.73,146.72,0.033]
[1741360564667,71.08032299,146.73,146.72,0.033]
[1741360564885,69.80210485,146.73,146.72,0.033]
[1741360565042,69.51778171,146.73,146.72,0.033]
[1741360565443,71.08045535,146.73,146.72,0.033]
[1741360565667,70.79613221,146.73,146.72,0.033]
[1741360565874,70.79613221,146.73,146.72,0.17516157]
[1741360566167,71.08045535,146.73,146.72,0.033]
[1741360566377,0.14216157,146.68,146.57,0.21324235]
[1741360566545,9.28,146.67,146.57,0.21324235]
[1741360566749,9.28,146.67,146.53,10.11634038]
[1741360566750,50.72597128,146.61,146.54,6.824]
[1741360567056,50.72597128,146.65,146.53,50.72597128]
[1741360567057,50.72597128,146.59,146.53,50.72597128]
[1741360567367,50.72597128,146.59,146.52,6.8249]
[1741360567368,50.72597128,146.58,146.5,6.8255]
[1741360567675,50.72597128,146.56,146.5,50.72597128]
[1741360567973,50.72597128,146.55,146.49,50.72597128]
[1741360568173,50.72597128,146.55,146.46,6.8278]
[1741360568467,50.72597128,146.52,146.47,50.72597128]
[1741360568772,9.28,146.52,146.47,50.72597128]
[1741360569148,1.27979809,146.55,146.49,50.72597128]
[1741360569358,9.28,146.54,146.52,50.72597128]
[1741360569550,9.28,146.54,146.53,50.72597128]
[1741360569750,27.92964886,146.54,146.45,7.04104235]
[1741360569969,50.72597128,146.52,146.46,50.72597128]
[1741360570167,10.55974491,146.54,146.45,7.04104235]
[1741360570349,10.55974491,146.54,146.46,50.72597128]
[1741360570553,50.72597128,146.52,146.45,7.04134235]
[1741360570766,50.72597128,146.5,146.45,0.21324235]
[1741360571356,18.79181043,146.5,146.43,1.6998002]
[1741360571560,18.64964886,146.48,146.43,1.6998002]
[1741360571970,60.00597128,146.49,146.43,52.42577148]
[1741360572165,9.28,146.49,146.44,50.72597128]
[1741360572379,9.28,146.49,146.46,50.72597128]
[1741360572672,147.54,146.52,146.49,0.14216157]
[1741360572858,147.54,146.52,146.51,0.14216157]
[1741360573267,147.54,146.52,146.51,50.86813285]
[1741360573469,147.54,146.52,146.51,0.14216157]
[1741360573652,166.18964886,146.52,146.51,0.14216157]
[1741360573859,147.54,146.52,146.51,0.14216157]
[1741360575195,147.54,146.52,146.51,50.86813285]
[1741360575559,147.62,146.6,146.52,0.14216157]
[1741360575875,147.62,146.6,146.59,0.14216157]
[1741360576758,166.26964886,146.6,146.53,312.0]
[1741360576964,166.26964886,146.6,146.45,0.21324235]
[1741360576965,50.72597128,146.54,146.45,0.21324235]
[1741360577174,50.72597128,146.53,146.45,0.21324235]
[1741360577369,20.0,146.52,146.47,50.72597128]
[1741360577565,29.28,146.52,146.47,50.72597128]
[1741360577774,9.28,146.52,146.49,50.86813285]
[1741360577971,18.64964886,146.55,146.49,50.86813285]
[1741360578168,18.64964886,146.53,146.49,0.14216157]
[1741360578366,52.00579378,146.54,146.48,50.86813285]
[1741360578683,9.28,146.57,146.51,50.86813285]
[1741360578867,70.65523815,146.56,146.51,0.14216157]
[1741360579176,18.64964886,146.53,146.45,0.21324235]
[1741360579392,9.28,146.57,146.52,0.14216157]
[1741360579393,10.56001336,146.57,146.52,0.14216157]
[1741360579684,91.4082,146.68,146.57,0.14216157]
[1741360579978,9.28,146.65,146.57,312.14216157]
[1741360580169,18.64964886,146.64,146.57,0.14216157]
[1741360580364,19.92882281,146.64,146.56,50.86813285]
[1741360580580,20.0,146.6,146.56,0.14216157]
[1741360580881,19.07613357,146.56,146.45,0.21324235]
[1741360581179,207.70597128,146.55,146.5,50.72597128]
[1741360581380,156.98,146.55,146.53,0.14216157]
[1741360581561,207.70597128,146.55,146.53,0.14216157]
[1741360581759,156.98,146.55,146.53,0.14216157]
[1741360582074,156.98,146.55,146.51,50.72597128]
[1741360582275,9.28,146.6,146.55,0.14216157]
[1741360582598,9.28,146.6,146.58,0.14216157]
[1741360583090,9.28,146.6,146.57,0.14216157]
[1741360583483,9.28,146.6,146.53,0.14216157]
[1741360583793,60.00597128,146.6,146.55,0.14216157]
[1741360583990,60.00597128,146.6,146.55,50.86813285]
[1741360583991,9.28,146.6,146.55,50.86813285]
[1741360584199,70.72597128,146.57,146.46,6.8278]
[1741360584411,20.0,146.57,146.46,6.8278]
[1741360584565,20.0,146.57,146.53,50.72597128]
[1741360584898,20.0,146.57,146.54,0.14216157]
[1741360585197,9.28,146.6,146.57,0.14216157]
[1741360585577,52.14748818,146.59,146.49,6.826]
[1741360585791,9.28,146.6,146.56,0.14216157]
[1741360585995,147.72,146.63,146.57,0.28432314]
[1741360586301,1.27892545,146.62,146.6,0.14216157]
[1741360586480,20.0,146.61,146.6,0.14216157]
[1741360586678,20.0,146.6,146.53,0.14216157]
[1741360586878,0.14216157,146.59,146.49,6.826]
[1741360587078,0.14216157,146.57,146.47,6.8273]
[1741360587315,9.28,146.56,146.49,0.42648471]
[1741360587499,9.28,146.56,146.49,0.28432314]
[1741360587687,50.72597128,146.58,146.52,50.72597128]
[1741360587884,60.00597128,146.59,146.53,50.72597128]
[1741360588087,9.28,146.59,146.54,50.86813285]
[1741360588400,50.72597128,146.56,146.49,0.28432314]
[1741360588698,50.72597128,146.54,146.49,50.72597128]
[1741360588878,50.72597128,146.55,146.47,312.0]
[1741360589195,50.86813285,146.55,146.49,50.86813285]
[1741360589402,20.0,146.56,146.5,50.72597128]
[1741360589581,70.72597128,146.56,146.5,50.72597128]
[1741360589781,20.0,146.56,146.51,0.14216157]
[1741360589975,50.72597128,146.53,146.45,0.21324235]
[1741360590181,50.72597128,146.52,146.47,50.72597128]
[1741360590380,50.72597128,146.53,146.48,50.72597128]
[1741360590608,20.0,146.54,146.49,50.72597128]
[1741360590840,70.72597128,146.54,146.48,50.72597128]
[1741360591340,70.72597128,146.54,146.49,0.14216157]
[1741360591525,50.72597128,146.56,146.51,0.14216157]
[1741360592215,20.0,146.55,146.51,0.14216157]
[1741360592611,20.0,146.55,146.49,0.14216157]
[1741360592847,20.0,146.55,146.52,0.14216157]
[1741360593216,70.72597128,146.55,146.52,0.14216157]
[1741360593525,70.72597128,146.55,146.49,50.72597128]
[1741360593734,20.0,146.55,146.5,50.72597128]
[1741360593935,20.0,146.55,146.51,0.14216157]
[1741360594760,20.0,146.55,146.51,34.12415835]
[1741360595059,20.0,146.55,146.52,0.14216157]
[1741360595674,20.0,146.55,146.5,0.14216157]
[1741360595675,53.98199678,146.55,146.5,0.14216157]
[1741360595844,20.0,146.55,146.51,0.14216157]
[1741360596037,20.0,146.55,146.51,34.12415835]
[1741360596234,20.0,146.55,146.53,0.14216157]
[1741360596438,147.74,146.58,146.53,34.12415835]
[1741360596634,147.74,146.58,146.56,0.14216157]
[1741360596866,147.74,146.58,146.57,34.12415835]
[1741360597069,33.98199678,146.62,146.58,0.14216157]
[1741360597259,20.0,146.62,146.57,0.14216157]
[1741360597465,33.98199678,146.6,146.57,0.14216157]
[1741360597759,33.98199678,146.58,146.52,0.14216157]
[1741360597942,33.98199678,146.58,146.54,0.14216157]
[1741360598268,9.28,146.58,146.54,0.14216157]
[1741360598470,43.26199678,146.58,146.53,33.98199678]
[1741360598676,43.26199678,146.58,146.51,312.0]
[1741360598677,9.28,146.58,146.55,0.14216157]
[1741360599243,9.28,146.58,146.56,0.14216157]
[1741360599441,9.28,146.58,146.57,34.12415835]
[1741360599676,9.28,146.63,146.58,0.14216157]
[1741360599976,157.02,146.66,146.61,0.14216157]
[1741360600142,147.74,146.66,146.63,0.14216157]
[1741360600343,147.74,146.66,146.64,33.98199678]
[1741360600561,147.74,146.66,146.65,0.14216157]
[1741360601057,9.28,146.69,146.66,0.14216157]
[1741360601262,33.98199678,146.73,146.68,0.14216157]
[1741360601474,20.03,146.71,146.68,0.14216157]
[1741360601984,20.03,146.71,146.67,34.12415835]
[1741360602144,20.03,146.71,146.67,0.14216157]
[1741360602349,33.98199678,146.69,146.67,0.14216157]
[1741360602575,50.89207046,146.68,146.62,0.14216157]
[1741360602787,9.28,146.67,146.57,20.21324235]